[Event "*** Titled Tuesday Blitz"]
[Site "Chess.com"]
[Date "2020.04.21"]
[Round "7"]
[White "EvgenyRomanov"]
[Black "ChristianAlm"]
[Result "1/2-1/2"]
[WhiteElo "2620"]
[BlackElo "2472"]
[TimeControl "180+1"]
[EndTime "11:23:24 PDT"]
[Termination "Game drawn by repetition"]

1. c4 {[%clk 0:03:00.9]} 1... c6 {[%clk 0:02:59]} 2. e4 {[%clk 0:03:00]} 2... e6
{[%clk 0:02:50.3]} 3. d4 {[%clk 0:02:52.1]} 3... d5 {[%clk 0:02:50.2]} 4. e5
{[%clk 0:02:51.4]} 4... dxc4 {[%clk 0:02:48.9]} 5. Bxc4 {[%clk 0:02:49.7]} 5...
c5 {[%clk 0:02:48.7]} 6. d5 {[%clk 0:02:44.8]} 6... exd5 {[%clk 0:02:46.9]} 7.
Bxd5 {[%clk 0:02:44.9]} 7... Nc6 {[%clk 0:02:21.6]} 8. Bxc6+ {[%clk 0:02:32.3]}
8... bxc6 {[%clk 0:02:21.5]} 9. Qxd8+ {[%clk 0:02:33.2]} 9... Kxd8 {[%clk
0:02:22.4]} 10. Nc3 {[%clk 0:02:25.8]} 10... Ne7 {[%clk 0:02:16.6]} 11. Bf4
{[%clk 0:02:19.4]} 11... Be6 {[%clk 0:02:06.3]} 12. O-O-O+ {[%clk 0:02:18]}
12... Kc7 {[%clk 0:02:01]} 13. Nge2 {[%clk 0:02:14]} 13... Nd5 {[%clk
0:01:54.4]} 14. Bg3 {[%clk 0:02:13.6]} 14... h5 {[%clk 0:01:48.8]} 15. h4 {[%clk
0:02:02.4]} 15... g6 {[%clk 0:01:47]} 16. Kb1 {[%clk 0:01:56.2]} 16... Rb8
{[%clk 0:01:37]} 17. Ka1 {[%clk 0:01:52.5]} 17... Nb4 {[%clk 0:01:31.2]} 18. Rd2
{[%clk 0:01:47.7]} 18... Be7 {[%clk 0:01:20.3]} 19. a3 {[%clk 0:01:42.2]} 19...
Nd5 {[%clk 0:01:16.6]} 20. Ne4 {[%clk 0:01:40.3]} 20... Rb3 {[%clk 0:01:10.6]}
21. Rc1 {[%clk 0:01:37.9]} 21... Rb5 {[%clk 0:00:52.5]} 22. Nd6 {[%clk 0:01:31]}
22... Bxd6 {[%clk 0:00:49.6]} 23. exd6+ {[%clk 0:01:30.3]} 23... Kd7 {[%clk
0:00:49.9]} 24. Rdc2 {[%clk 0:01:17.6]} 24... Rhb8 {[%clk 0:00:46]} 25. Rd2
{[%clk 0:01:04.1]} 25... Ra5 {[%clk 0:00:29.7]} 26. Ng1 {[%clk 0:00:57.4]} 26...
Rb3 {[%clk 0:00:29.1]} 27. Nf3 {[%clk 0:00:54.8]} 27... f6 {[%clk 0:00:27.8]}
28. Ne1 {[%clk 0:00:53.4]} 28... Nb6 {[%clk 0:00:22.4]} 29. Rdc2 {[%clk
0:00:29.6]} 29... c4 {[%clk 0:00:20.4]} 30. Nf3 {[%clk 0:00:26.1]} 30... Rd3
{[%clk 0:00:13.7]} 31. Rd2 {[%clk 0:00:20.5]} 31... Rb3 {[%clk 0:00:08.2]} 32.
Nd4 {[%clk 0:00:19.2]} 32... Rd3 {[%clk 0:00:04.2]} 33. Rcd1 {[%clk 0:00:16.4]}
33... Rxd2 {[%clk 0:00:04.1]} 34. Rxd2 {[%clk 0:00:17.3]} 34... Bd5 {[%clk
0:00:04.4]} 35. Ne2 {[%clk 0:00:16.7]} 35... Na4 {[%clk 0:00:03.5]} 36. f3
{[%clk 0:00:15.6]} 36... c3 {[%clk 0:00:03.6]} 37. bxc3 {[%clk 0:00:15.1]} 37...
Nc5 {[%clk 0:00:01.6]} 38. Kb2 {[%clk 0:00:15.3]} 38... Nb3 {[%clk 0:00:02.5]}
39. Rd1 {[%clk 0:00:14.7]} 39... Rb5 {[%clk 0:00:03.4]} 40. a4 {[%clk
0:00:14.3]} 40... Rb7 {[%clk 0:00:02.6]} 41. Ka3 {[%clk 0:00:14.9]} 41... Nc5
{[%clk 0:00:02.7]} 42. Nd4 {[%clk 0:00:13]} 42... Ne6 {[%clk 0:00:02.1]} 43. a5
{[%clk 0:00:10.4]} 43... Nxd4 {[%clk 0:00:02.2]} 44. Rxd4 {[%clk 0:00:11.3]}
44... Rb3+ {[%clk 0:00:02.8]} 45. Ka4 {[%clk 0:00:11.9]} 45... Rxc3 {[%clk
0:00:03.7]} 46. Rb4 {[%clk 0:00:12.1]} 46... Rc4 {[%clk 0:00:03.9]} 47. Rxc4
{[%clk 0:00:11.9]} 47... Bxc4 {[%clk 0:00:04.8]} 48. Kb4 {[%clk 0:00:12.8]}
48... Bb5 {[%clk 0:00:05.4]} 49. Bf4 {[%clk 0:00:12.1]} 49... Ke6 {[%clk
0:00:05.1]} 50. g3 {[%clk 0:00:12.2]} 50... Kd7 {[%clk 0:00:05]} 51. Kc5 {[%clk
0:00:13.1]} 51... Be2 {[%clk 0:00:04.1]} 52. Bh6 {[%clk 0:00:14]} 52... Bxf3
{[%clk 0:00:04.3]} 53. Bg7 {[%clk 0:00:14.6]} 53... f5 {[%clk 0:00:04.8]} 54.
Be5 {[%clk 0:00:14.4]} 54... Bd5 {[%clk 0:00:05.7]} 55. Bf4 {[%clk 0:00:15.3]}
55... Be4 {[%clk 0:00:06.1]} 56. Be5 {[%clk 0:00:15.7]} 56... Bd5 {[%clk
0:00:06.5]} 57. Bf4 {[%clk 0:00:16.6]} 57... a6 {[%clk 0:00:06.6]} 58. Bg5
{[%clk 0:00:16.7]} 58... Be4 {[%clk 0:00:06.7]} 59. Bf4 {[%clk 0:00:17.6]} 59...
Bd3 {[%clk 0:00:07]} 60. Bg5 {[%clk 0:00:18.5]} 60... Bb5 {[%clk 0:00:07.9]} 61.
Bf4 {[%clk 0:00:19.4]} 61... Ke6 {[%clk 0:00:08.1]} 62. Bg5 {[%clk 0:00:20.3]}
62... Kd7 {[%clk 0:00:08.9]} 63. Bf4 {[%clk 0:00:21.2]} 63... Bd3 {[%clk
0:00:09]} 64. Bg5 {[%clk 0:00:22.1]} 64... Be2 {[%clk 0:00:09.2]} 65. Bf4 {[%clk
0:00:23]} 65... Bb5 {[%clk 0:00:09.8]} 66. Bg5 {[%clk 0:00:23.9]} 66... Ke6
{[%clk 0:00:09.5]} 67. Bf4 {[%clk 0:00:24.8]} 67... Kd7 {[%clk 0:00:09.9]} 68.
Bg5 {[%clk 0:00:25.7]} 68... Ke6 {[%clk 0:00:10.3]} 69. Bf4 {[%clk 0:00:26.6]}
69... Kd7 {[%clk 0:00:11.2]} 1/2-1/2

[Event "*** Titled Tuesday Blitz"]
[Site "Chess.com"]
[Date "2020.04.21"]
[Round "7"]
[White "ChesterF"]
[Black "TERMINATOR_PC"]
[Result "0-1"]
[WhiteElo "2524"]
[BlackElo "2409"]
[TimeControl "180+1"]
[EndTime "11:23:27 PDT"]
[Termination "TERMINATOR_PC won by resignation"]

1. e4 {[%clk 0:03:00]} 1... Nf6 {[%clk 0:02:59.2]} 2. e5 {[%clk 0:02:59.1]} 2...
Nd5 {[%clk 0:02:59.7]} 3. d4 {[%clk 0:02:59.7]} 3... d6 {[%clk 0:03:00.1]} 4.
Nf3 {[%clk 0:03:00.4]} 4... dxe5 {[%clk 0:03:00.2]} 5. Nxe5 {[%clk 0:02:59.1]}
5... c6 {[%clk 0:03:00.6]} 6. Be2 {[%clk 0:02:56.5]} 6... Bf5 {[%clk 0:03:00.2]}
7. O-O {[%clk 0:02:52.4]} 7... Nd7 {[%clk 0:03:00.4]} 8. Nf3 {[%clk 0:02:52]}
8... e6 {[%clk 0:03:00.3]} 9. c4 {[%clk 0:02:21]} 9... N5f6 {[%clk 0:03:00.1]}
10. Nc3 {[%clk 0:02:20.4]} 10... Bd6 {[%clk 0:03:00]} 11. h3 {[%clk 0:02:15.7]}
11... Qc7 {[%clk 0:02:56.4]} 12. Be3 {[%clk 0:02:00.5]} 12... h6 {[%clk
0:02:56]} 13. Re1 {[%clk 0:01:53.4]} 13... O-O {[%clk 0:02:52.9]} 14. Qd2 {[%clk
0:01:50.2]} 14... Rfe8 {[%clk 0:02:51]} 15. c5 {[%clk 0:01:48.8]} 15... Bf8
{[%clk 0:02:51]} 16. Bf4 {[%clk 0:01:48.9]} 16... Qd8 {[%clk 0:02:51.5]} 17. Bc4
{[%clk 0:01:44.5]} 17... Nd5 {[%clk 0:02:48.2]} 18. Bh2 {[%clk 0:01:40.6]} 18...
g5 {[%clk 0:02:26]} 19. Nxd5 {[%clk 0:01:24.9]} 19... exd5 {[%clk 0:02:26.9]}
20. Bd3 {[%clk 0:01:25.2]} 20... Qf6 {[%clk 0:02:17.6]} 21. Bxf5 {[%clk
0:01:12.6]} 21... Qxf5 {[%clk 0:02:17.6]} 22. b4 {[%clk 0:00:40.8]} 22... Bg7
{[%clk 0:02:14.8]} 23. a4 {[%clk 0:00:39.3]} 23... a6 {[%clk 0:02:13.6]} 24.
Rab1 {[%clk 0:00:38.3]} 24... Re4 {[%clk 0:01:43]} 25. b5 {[%clk 0:00:36.9]}
25... axb5 {[%clk 0:01:42]} 26. axb5 {[%clk 0:00:36.8]} 26... Rae8 {[%clk
0:01:40.4]} 27. Rf1 {[%clk 0:00:22.5]} 27... Bf6 {[%clk 0:01:12.6]} 28. bxc6
{[%clk 0:00:20.2]} 28... bxc6 {[%clk 0:01:12.6]} 29. Rb7 {[%clk 0:00:20.8]}
29... Nf8 {[%clk 0:01:00.1]} 30. Rb6 {[%clk 0:00:19]} 30... R4e6 {[%clk
0:00:48.8]} 31. Qb4 {[%clk 0:00:12.6]} 31... Ng6 {[%clk 0:00:45.6]} 32. Qa4
{[%clk 0:00:11.8]} 32... h5 {[%clk 0:00:37.5]} 33. Rxc6 {[%clk 0:00:10.2]} 33...
g4 {[%clk 0:00:38.1]} 34. hxg4 {[%clk 0:00:10.3]} 34... hxg4 {[%clk 0:00:39]}
35. Ne5 {[%clk 0:00:10.5]} 35... Bxe5 {[%clk 0:00:37.3]} 36. dxe5 {[%clk
0:00:09.8]} 36... Nxe5 {[%clk 0:00:36.6]} 37. Rxe6 {[%clk 0:00:09.7]} 37... Rxe6
{[%clk 0:00:37.5]} 38. Qa8+ {[%clk 0:00:08]} 38... Kg7 {[%clk 0:00:37.4]} 39. c6
{[%clk 0:00:07.9]} 39... Nxc6 {[%clk 0:00:35.6]} 40. Qc8 {[%clk 0:00:07.8]}
40... Nd4 {[%clk 0:00:34.8]} 41. Rd1 {[%clk 0:00:05.4]} 41... Re1+ {[%clk
0:00:34.7]} 42. Rxe1 {[%clk 0:00:05.2]} 42... Qxc8 {[%clk 0:00:35.6]} 43. Be5+
{[%clk 0:00:05.8]} 43... Kg6 {[%clk 0:00:32.6]} 44. Bxd4 {[%clk 0:00:06.7]}
44... Qc4 {[%clk 0:00:29.7]} 45. Rd1 {[%clk 0:00:05.3]} 45... Qc2 {[%clk
0:00:26.8]} 46. Re1 {[%clk 0:00:05]} 46... Qd3 {[%clk 0:00:24.7]} 47. Be3 {[%clk
0:00:04.9]} 47... d4 {[%clk 0:00:23.8]} 48. Bf4 {[%clk 0:00:05.4]} 48... Qc2
{[%clk 0:00:20.4]} 49. Rc1 {[%clk 0:00:05]} 49... Qe4 {[%clk 0:00:20.4]} 50. g3
{[%clk 0:00:04.9]} 50... d3 {[%clk 0:00:19.5]} 51. Rd1 {[%clk 0:00:04.6]} 51...
Kf5 {[%clk 0:00:15.5]} 52. Rd2 {[%clk 0:00:04.9]} 52... Ke6 {[%clk 0:00:14.5]}
53. Rb2 {[%clk 0:00:04.8]} 53... Qd4 {[%clk 0:00:12.3]} 54. Rd2 {[%clk
0:00:03.9]} 54... Kd5 {[%clk 0:00:11.1]} 55. Kh2 {[%clk 0:00:04.5]} 55... Ke4
{[%clk 0:00:09.4]} 56. Kg2 {[%clk 0:00:05.1]} 56... Qd5 {[%clk 0:00:09.2]} 57.
Ra2 {[%clk 0:00:04.9]} 57... Qxa2 {[%clk 0:00:08.9]} 0-1

[Event "*** Titled Tuesday Blitz"]
[Site "Chess.com"]
[Date "2020.04.21"]
[Round "7"]
[White "Ind1anStar"]
[Black "AnastasiaProtopopova"]
[Result "1-0"]
[WhiteElo "2586"]
[BlackElo "2286"]
[TimeControl "180+1"]
[EndTime "11:23:33 PDT"]
[Termination "Ind1anStar won on time"]

1. c4 {[%clk 0:03:00.9]} 1... e5 {[%clk 0:02:59.5]} 2. g3 {[%clk 0:03:00.6]}
2... Nf6 {[%clk 0:02:54.6]} 3. Bg2 {[%clk 0:03:01]} 3... Bc5 {[%clk 0:02:52.7]}
4. Nc3 {[%clk 0:02:58.3]} 4... c6 {[%clk 0:02:51.3]} 5. e3 {[%clk 0:02:57.7]}
5... d5 {[%clk 0:02:51.1]} 6. d4 {[%clk 0:02:55.3]} 6... exd4 {[%clk 0:02:47]}
7. exd4 {[%clk 0:02:55.5]} 7... Bb6 {[%clk 0:02:42.3]} 8. cxd5 {[%clk
0:02:52.5]} 8... Nxd5 {[%clk 0:02:40.9]} 9. Nge2 {[%clk 0:02:49.2]} 9... O-O
{[%clk 0:02:38.5]} 10. O-O {[%clk 0:02:49.1]} 10... Bg4 {[%clk 0:02:35.1]} 11.
Nxd5 {[%clk 0:02:45.7]} 11... cxd5 {[%clk 0:02:36]} 12. Be3 {[%clk 0:02:44.3]}
12... Nc6 {[%clk 0:02:34.9]} 13. f3 {[%clk 0:02:44.7]} 13... Bf5 {[%clk
0:02:26.6]} 14. Nc3 {[%clk 0:02:26.3]} 14... Re8 {[%clk 0:02:17.6]} 15. Bf2
{[%clk 0:02:26.5]} 15... Qd7 {[%clk 0:02:06]} 16. Qd2 {[%clk 0:02:24.7]} 16...
Rad8 {[%clk 0:02:04.9]} 17. Rae1 {[%clk 0:02:24.1]} 17... h6 {[%clk 0:01:46.9]}
18. Qf4 {[%clk 0:02:19]} 18... Bd3 {[%clk 0:01:37.7]} 19. Rxe8+ {[%clk 0:02:17]}
19... Rxe8 {[%clk 0:01:38.6]} 20. Rd1 {[%clk 0:02:15.4]} 20... Bc2 {[%clk
0:01:16.6]} 21. Rc1 {[%clk 0:02:11.8]} 21... Bf5 {[%clk 0:01:10.1]} 22. Qd2
{[%clk 0:02:10.9]} 22... Qd6 {[%clk 0:01:03.2]} 23. a3 {[%clk 0:02:01.1]} 23...
a6 {[%clk 0:00:57.5]} 24. b4 {[%clk 0:02:00.1]} 24... Rd8 {[%clk 0:00:50.2]} 25.
Re1 {[%clk 0:01:50.9]} 25... Qf6 {[%clk 0:00:48.8]} 26. Rd1 {[%clk 0:01:42]}
26... Ba7 {[%clk 0:00:38.5]} 27. f4 {[%clk 0:01:41.9]} 27... Qd6 {[%clk
0:00:20.6]} 28. Bf3 {[%clk 0:01:30]} 28... Be4 {[%clk 0:00:13.6]} 29. Bxe4
{[%clk 0:01:04.9]} 29... dxe4 {[%clk 0:00:14.5]} 30. Nxe4 {[%clk 0:01:05.8]}
30... Qd5 {[%clk 0:00:14.7]} 31. Nc5 {[%clk 0:01:06]} 31... Bxc5 {[%clk
0:00:15.3]} 32. bxc5 {[%clk 0:01:05.9]} 32... Qf3 {[%clk 0:00:15.7]} 33. Re1
{[%clk 0:01:02.9]} 33... Qd5 {[%clk 0:00:12.1]} 34. Qd3 {[%clk 0:00:42.9]} 34...
Nxd4 {[%clk 0:00:09.5]} 35. Bxd4 {[%clk 0:00:42.5]} 35... Qxd4+ {[%clk
0:00:08.6]} 36. Qxd4 {[%clk 0:00:41.6]} 36... Rxd4 {[%clk 0:00:09.5]} 37. Re7
{[%clk 0:00:41.6]} 37... Rc4 {[%clk 0:00:06]} 38. Rc7 {[%clk 0:00:40.6]} 38...
Rc3 {[%clk 0:00:04.8]} 39. a4 {[%clk 0:00:40.1]} 39... Rc4 {[%clk 0:00:02.6]}
40. a5 {[%clk 0:00:40.4]} 40... Kf8 {[%clk 0:00:02.7]} 41. Kg2 {[%clk
0:00:39.8]} 41... g6 {[%clk 0:00:01.7]} 42. h4 {[%clk 0:00:39.2]} 42... h5
{[%clk 0:00:02]} 43. Kf3 {[%clk 0:00:39]} 43... Ke8 {[%clk 0:00:02.5]} 44. Ke3
{[%clk 0:00:34.9]} 44... Ra4 {[%clk 0:00:01.5]} 45. Rxb7 {[%clk 0:00:34.3]}
45... Rxa5 {[%clk 0:00:02.4]} 46. c6 {[%clk 0:00:34.4]} 46... Rc5 {[%clk
0:00:02]} 47. Rb6 {[%clk 0:00:33.1]} 47... Kd8 {[%clk 0:00:01.6]} 48. Kd4 {[%clk
0:00:33.3]} 48... Rc1 {[%clk 0:00:01.2]} 49. Rxa6 {[%clk 0:00:33.6]} 49... Kc7
{[%clk 0:00:01.5]} 50. Ra7+ {[%clk 0:00:33.6]} 50... Kxc6 {[%clk 0:00:02]} 51.
Rxf7 {[%clk 0:00:34.3]} 51... Rd1+ {[%clk 0:00:01.3]} 52. Ke5 {[%clk 0:00:33.5]}
52... Re1+ {[%clk 0:00:01.9]} 53. Kd4 {[%clk 0:00:30.3]} 53... Rd1+ {[%clk
0:00:01.8]} 54. Ke3 {[%clk 0:00:30.7]} 54... Re1+ {[%clk 0:00:01.7]} 55. Kf2
{[%clk 0:00:30.9]} 55... Re6 {[%clk 0:00:02.3]} 56. Kf3 {[%clk 0:00:30.6]} 56...
Kd5 {[%clk 0:00:02.4]} 57. f5 {[%clk 0:00:30.3]} 57... gxf5 {[%clk 0:00:02.4]}
58. Rxf5+ {[%clk 0:00:31.2]} 58... Kd6 {[%clk 0:00:02.3]} 59. Rxh5 {[%clk
0:00:31.2]} 59... Rf6+ {[%clk 0:00:02.7]} 60. Kg4 {[%clk 0:00:30.9]} 60... Rg6+
{[%clk 0:00:02.4]} 61. Rg5 {[%clk 0:00:30.5]} 61... Re6 {[%clk 0:00:02.5]} 62.
h5 {[%clk 0:00:31.1]} 62... Re4+ {[%clk 0:00:02.6]} 63. Kf5 {[%clk 0:00:31.2]}
63... Re5+ {[%clk 0:00:02.4]} 64. Kg6 {[%clk 0:00:31.6]} 64... Re6+ {[%clk
0:00:02.7]} 65. Kh7 {[%clk 0:00:32]} 65... Re7+ {[%clk 0:00:02.7]} 66. Rg7
{[%clk 0:00:32.5]} 66... Re1 {[%clk 0:00:02.6]} 67. g4 {[%clk 0:00:33]} 67...
Rh1 {[%clk 0:00:02.8]} 68. h6 {[%clk 0:00:33.6]} 68... Ke6 {[%clk 0:00:03.1]}
69. g5 {[%clk 0:00:34.1]} 69... Kf5 {[%clk 0:00:03.1]} 70. Kg8 {[%clk
0:00:30.4]} 70... Ra1 {[%clk 0:00:01.6]} 71. Rf7+ {[%clk 0:00:26.2]} 1-0

[Event "*** Titled Tuesday Blitz"]
[Site "Chess.com"]
[Date "2020.04.21"]
[Round "7"]
[White "BlackWidow515"]
[Black "Anaj14"]
[Result "1-0"]
[WhiteElo "2111"]
[BlackElo "2220"]
[TimeControl "180+1"]
[EndTime "11:23:33 PDT"]
[Termination "BlackWidow515 won on time"]

1. d4 {[%clk 0:03:00.8]} 1... d5 {[%clk 0:02:55.8]} 2. Nf3 {[%clk 0:03:01.4]}
2... c6 {[%clk 0:02:55.6]} 3. g3 {[%clk 0:03:01.8]} 3... Bg4 {[%clk 0:02:53.1]}
4. Bg2 {[%clk 0:03:02]} 4... Nd7 {[%clk 0:02:53.2]} 5. O-O {[%clk 0:02:58.3]}
5... Ngf6 {[%clk 0:02:53.2]} 6. b3 {[%clk 0:02:57.7]} 6... e6 {[%clk 0:02:51.7]}
7. c4 {[%clk 0:02:58.1]} 7... h6 {[%clk 0:02:51.4]} 8. h3 {[%clk 0:02:58]} 8...
Bh5 {[%clk 0:02:49.3]} 9. Nc3 {[%clk 0:02:55.2]} 9... Bd6 {[%clk 0:02:45.9]} 10.
Re1 {[%clk 0:02:54.7]} 10... Bg6 {[%clk 0:02:42.8]} 11. Bb2 {[%clk 0:02:54.3]}
11... Ne4 {[%clk 0:02:41.2]} 12. Nh4 {[%clk 0:02:51]} 12... Nxc3 {[%clk
0:02:35.7]} 13. Bxc3 {[%clk 0:02:50.1]} 13... Bh7 {[%clk 0:02:36.1]} 14. e4
{[%clk 0:02:49]} 14... dxe4 {[%clk 0:02:34.6]} 15. d5 {[%clk 0:02:46.9]} 15...
cxd5 {[%clk 0:02:17.3]} 16. Bxg7 {[%clk 0:02:46.4]} 16... Rg8 {[%clk 0:02:17.2]}
17. Bxh6 {[%clk 0:02:46.5]} 17... Qb6 {[%clk 0:02:01.3]} 18. Be3 {[%clk
0:02:42.1]} 18... Bc5 {[%clk 0:01:55.6]} 19. cxd5 {[%clk 0:02:42.2]} 19... exd5
{[%clk 0:01:50.1]} 20. Qxd5 {[%clk 0:02:39.7]} 20... Bxe3 {[%clk 0:01:46.7]} 21.
Rxe3 {[%clk 0:02:38.7]} 21... O-O-O {[%clk 0:01:46.9]} 22. Bxe4 {[%clk
0:02:23.4]} 22... Bxe4 {[%clk 0:01:46.1]} 23. Qxe4 {[%clk 0:02:20.9]} 23... Kb8
{[%clk 0:01:43.5]} 24. Nf5 {[%clk 0:02:12.8]} 24... Ka8 {[%clk 0:01:41.2]} 25.
Rd1 {[%clk 0:02:06.5]} 25... Nc5 {[%clk 0:01:38.5]} 26. Rxd8+ {[%clk 0:02:04.2]}
26... Rxd8 {[%clk 0:01:38.7]} 27. Qf3 {[%clk 0:01:58.4]} 27... Ne6 {[%clk
0:01:37]} 28. h4 {[%clk 0:01:51.9]} 28... a6 {[%clk 0:01:32.3]} 29. Rd3 {[%clk
0:01:45.7]} 29... Rc8 {[%clk 0:01:29.9]} 30. Qe3 {[%clk 0:01:19.4]} 30... Qa5
{[%clk 0:01:26.8]} 31. a4 {[%clk 0:01:08.4]} 31... Qxf5 {[%clk 0:01:25.3]} 32.
Rd7 {[%clk 0:01:00.9]} 32... Nc5 {[%clk 0:01:16.7]} 33. Re7 {[%clk 0:00:56.5]}
33... f6 {[%clk 0:00:57.5]} 34. a5 {[%clk 0:00:55.8]} 34... Qd5 {[%clk
0:00:44.2]} 35. b4 {[%clk 0:00:51.3]} 35... Nd7 {[%clk 0:00:36.7]} 36. Qe4
{[%clk 0:00:39.5]} 36... Qb5 {[%clk 0:00:22.4]} 37. Kh2 {[%clk 0:00:12.2]} 37...
Ne5 {[%clk 0:00:22.2]} 38. h5 {[%clk 0:00:09.4]} 38... Rh8 {[%clk 0:00:20.9]}
39. g4 {[%clk 0:00:09.1]} 39... Ka7 {[%clk 0:00:10.8]} 40. Qd4+ {[%clk 0:00:09]}
40... Ka8 {[%clk 0:00:09.4]} 41. Kg3 {[%clk 0:00:09.5]} 41... Rg8 {[%clk
0:00:08.6]} 42. f3 {[%clk 0:00:09]} 42... Qc6 {[%clk 0:00:07.6]} 43. Qe4 {[%clk
0:00:09]} 43... Qxe4 {[%clk 0:00:05.3]} 44. fxe4 {[%clk 0:00:09.3]} 44... Nxg4
{[%clk 0:00:06]} 45. Kh3 {[%clk 0:00:09.9]} 45... Nf2+ {[%clk 0:00:05.3]} 46.
Kh2 {[%clk 0:00:09.3]} 46... Nd3 {[%clk 0:00:06.2]} 47. Rf7 {[%clk 0:00:08.8]}
47... Rg5 {[%clk 0:00:06.3]} 48. Rxf6 {[%clk 0:00:08.7]} 48... Rxh5+ {[%clk
0:00:06.8]} 49. Kg3 {[%clk 0:00:09.2]} 49... Nxb4 {[%clk 0:00:07.7]} 50. Rf8+
{[%clk 0:00:09]} 50... Ka7 {[%clk 0:00:07.5]} 51. Kf4 {[%clk 0:00:09.7]} 51...
Rxa5 {[%clk 0:00:06.5]} 52. e5 {[%clk 0:00:10.3]} 52... Nc6 {[%clk 0:00:06.7]}
53. e6 {[%clk 0:00:10.5]} 53... Re5 {[%clk 0:00:07]} 54. Re8 {[%clk 0:00:09.5]}
54... Kb6 {[%clk 0:00:04.7]} 55. Kg4 {[%clk 0:00:08.6]} 55... a5 {[%clk
0:00:04.7]} 56. Kf4 {[%clk 0:00:09.1]} 56... a4 {[%clk 0:00:04.9]} 57. Ra8
{[%clk 0:00:09.4]} 57... Ra5 {[%clk 0:00:02.2]} 58. Rxa5 {[%clk 0:00:08.9]}
58... Kxa5 {[%clk 0:00:03.1]} 59. Ke4 {[%clk 0:00:09.5]} 1-0

[Event "*** Titled Tuesday Blitz"]
[Site "Chess.com"]
[Date "2020.04.21"]
[Round "7"]
[White "checkmatequen"]
[Black "QueenOfTactics90"]
[Result "1-0"]
[WhiteElo "2232"]
[BlackElo "1939"]
[TimeControl "180+1"]
[EndTime "11:23:36 PDT"]
[Termination "checkmatequen won by checkmate"]

1. e4 {[%clk 0:02:57.9]} 1... c5 {[%clk 0:02:59.1]} 2. Nf3 {[%clk 0:02:56.8]}
2... Nc6 {[%clk 0:02:59.2]} 3. d4 {[%clk 0:02:56.8]} 3... cxd4 {[%clk
0:03:00.1]} 4. Nxd4 {[%clk 0:02:57.5]} 4... g6 {[%clk 0:03:00.1]} 5. Nc3 {[%clk
0:02:57.8]} 5... Bg7 {[%clk 0:03:00]} 6. Be3 {[%clk 0:02:58.4]} 6... Nf6 {[%clk
0:02:59.5]} 7. Bc4 {[%clk 0:02:56.9]} 7... O-O {[%clk 0:02:59.3]} 8. Bb3 {[%clk
0:02:57.2]} 8... a5 {[%clk 0:02:59.7]} 9. O-O {[%clk 0:02:49.3]} 9... a4 {[%clk
0:02:59.3]} 10. Nxa4 {[%clk 0:02:49.7]} 10... Nxe4 {[%clk 0:02:56]} 11. Nb5
{[%clk 0:02:48.3]} 11... d5 {[%clk 0:02:46.3]} 12. Bb6 {[%clk 0:02:42.4]} 12...
Qd7 {[%clk 0:02:44.8]} 13. f3 {[%clk 0:02:31.8]} 13... Nf6 {[%clk 0:02:07.1]}
14. Nc7 {[%clk 0:02:19.1]} 14... Rb8 {[%clk 0:02:00.5]} 15. Nxd5 {[%clk
0:02:19.2]} 15... Nxd5 {[%clk 0:01:57.5]} 16. Qxd5 {[%clk 0:02:20.1]} 16... Nb4
{[%clk 0:01:48.6]} 17. Qxd7 {[%clk 0:02:16.9]} 17... Bxd7 {[%clk 0:01:48.1]} 18.
c3 {[%clk 0:02:17]} 18... Nd3 {[%clk 0:01:36.7]} 19. Rab1 {[%clk 0:02:14.9]}
19... Bb5 {[%clk 0:01:28]} 20. Rfd1 {[%clk 0:02:12.9]} 20... Nf4 {[%clk
0:01:16.4]} 21. c4 {[%clk 0:02:08.4]} 21... Bc6 {[%clk 0:01:06.2]} 22. Bc7
{[%clk 0:02:01.2]} 22... Ne2+ {[%clk 0:01:03.3]} 23. Kf2 {[%clk 0:02:01.2]}
23... Rbc8 {[%clk 0:01:02.1]} 24. Kxe2 {[%clk 0:01:56.6]} 24... Rxc7 {[%clk
0:01:01]} 25. Nc3 {[%clk 0:01:56.9]} 25... Rd7 {[%clk 0:00:58.7]} 26. Nd5 {[%clk
0:01:53.3]} 26... Bxd5 {[%clk 0:00:51.9]} 27. cxd5 {[%clk 0:01:54.2]} 27... Rc8
{[%clk 0:00:50.5]} 28. Rd2 {[%clk 0:01:46.2]} 28... Kf8 {[%clk 0:00:47.7]} 29.
Rbd1 {[%clk 0:01:23.1]} 29... Rd6 {[%clk 0:00:48.2]} 30. Ba4 {[%clk 0:01:17.3]}
30... f5 {[%clk 0:00:45.5]} 31. b3 {[%clk 0:01:17.2]} 31... Rc5 {[%clk
0:00:44.3]} 32. f4 {[%clk 0:01:06.6]} 32... b5 {[%clk 0:00:44.1]} 33. b4 {[%clk
0:01:05.2]} 33... Rc4 {[%clk 0:00:38.5]} 34. Bxb5 {[%clk 0:01:05.1]} 34... Rxb4
{[%clk 0:00:39]} 35. a4 {[%clk 0:01:04.8]} 35... Rxf4 {[%clk 0:00:39]} 36. a5
{[%clk 0:01:03.2]} 36... Rb4 {[%clk 0:00:38.3]} 37. Bc6 {[%clk 0:01:01.5]} 37...
Bc3 {[%clk 0:00:34.5]} 38. Rc2 {[%clk 0:00:55.8]} 38... Re4+ {[%clk 0:00:34.6]}
39. Kf3 {[%clk 0:00:55.2]} 39... Bxa5 {[%clk 0:00:35.5]} 40. Ra2 {[%clk
0:00:52.8]} 40... Bb4 {[%clk 0:00:35]} 41. Rb1 {[%clk 0:00:51.7]} 41... Kg7
{[%clk 0:00:35.8]} 42. Ra7 {[%clk 0:00:49.2]} 42... Kf6 {[%clk 0:00:35]} 43. Ra4
{[%clk 0:00:47.4]} 43... Bc5 {[%clk 0:00:32.8]} 44. Rxe4 {[%clk 0:00:43.1]}
44... fxe4+ {[%clk 0:00:33.7]} 45. Kxe4 {[%clk 0:00:44]} 45... e6 {[%clk
0:00:32.2]} 46. Rf1+ {[%clk 0:00:41.9]} 46... Ke7 {[%clk 0:00:31.4]} 47. Rc1
{[%clk 0:00:38.6]} 47... exd5+ {[%clk 0:00:31]} 48. Bxd5 {[%clk 0:00:39.5]}
48... Bb6 {[%clk 0:00:27.7]} 49. g4 {[%clk 0:00:36.2]} 49... Rd7 {[%clk
0:00:26.3]} 50. h4 {[%clk 0:00:36]} 50... Rc7 {[%clk 0:00:26.4]} 51. Rb1 {[%clk
0:00:35.7]} 51... Bc5 {[%clk 0:00:26]} 52. Rf1 {[%clk 0:00:33.3]} 52... Ke8
{[%clk 0:00:21.5]} 53. Ke5 {[%clk 0:00:25.2]} 53... Re7+ {[%clk 0:00:21.8]} 54.
Be6 {[%clk 0:00:25.5]} 54... Ba3 {[%clk 0:00:20.5]} 55. Rb1 {[%clk 0:00:23.5]}
55... Bd6+ {[%clk 0:00:19]} 56. Kxd6 {[%clk 0:00:22.6]} 56... Kf8 {[%clk
0:00:19.1]} 57. Rb8+ {[%clk 0:00:21.4]} 57... Re8 {[%clk 0:00:20]} 58. Rb7
{[%clk 0:00:20.4]} 58... Rd8+ {[%clk 0:00:19.5]} 59. Ke5 {[%clk 0:00:19.9]}
59... Re8 {[%clk 0:00:19.3]} 60. Rxh7 {[%clk 0:00:19.9]} 60... Re7 {[%clk
0:00:17.7]} 61. Rxe7 {[%clk 0:00:19.3]} 61... Kxe7 {[%clk 0:00:18.6]} 62. Bc4
{[%clk 0:00:18.3]} 62... Kf8 {[%clk 0:00:18]} 63. Kf4 {[%clk 0:00:18.2]} 63...
Kg7 {[%clk 0:00:18.2]} 64. Kg5 {[%clk 0:00:18.7]} 64... Kh7 {[%clk 0:00:18.7]}
65. Bd3 {[%clk 0:00:19.1]} 65... Kg7 {[%clk 0:00:18.7]} 66. Bxg6 {[%clk
0:00:19.6]} 66... Kh8 {[%clk 0:00:18.9]} 67. h5 {[%clk 0:00:19.7]} 67... Kg7
{[%clk 0:00:19.2]} 68. Kf5 {[%clk 0:00:18.6]} 68... Kh8 {[%clk 0:00:20.1]} 69.
g5 {[%clk 0:00:18.8]} 69... Kg7 {[%clk 0:00:20.2]} 70. Be8 {[%clk 0:00:18.6]}
70... Kh7 {[%clk 0:00:20]} 71. h6 {[%clk 0:00:17.2]} 71... Kh8 {[%clk
0:00:19.8]} 72. g6 {[%clk 0:00:17.3]} 72... Kg8 {[%clk 0:00:20]} 73. g7 {[%clk
0:00:17.7]} 73... Kh7 {[%clk 0:00:19.8]} 74. Bb5 {[%clk 0:00:14.5]} 74... Kg8
{[%clk 0:00:19.7]} 75. Bc4+ {[%clk 0:00:14.3]} 75... Kh7 {[%clk 0:00:19.7]} 76.
g8=Q+ {[%clk 0:00:15.2]} 76... Kxh6 {[%clk 0:00:19.8]} 77. Qg6# {[%clk
0:00:15.6]} 1-0